[Event "Masters Tournament (MTO)"]
[Site "Biel, Switzerland"]
[Date "2026.07.14"]
[Round "2.36"]
[White "Wiesmann, Dominique"]
[Black "Iafelice, Vincenzo"]
[Result "0-1"]
[TimeControl "100+30+30sec/move"]
[WhiteTitle "-"]
[BlackTitle "-"]
[WhiteFideId "1308262"]
[BlackFideId "810541"]
[WhiteElo "1978"]
[BlackElo "2086"]

1. c4 {[%clk 01:40:55]} {[%emt 00:00:05]} Nf6 {[%clk 01:40:51]} {[%emt
00:00:10]} 2. g3 {[%clk 01:41:15]} {[%emt 00:00:09]} e6 {[%clk 01:41:04]}
{[%emt 00:00:18]} 3. Bg2 {[%clk 01:41:35]} {[%emt 00:00:09]} d5 {[%clk
01:41:21]} {[%emt 00:00:14]} 4. Nf3 {[%clk 01:41:54]} {[%emt 00:00:10]} dxc4
{[%clk 01:41:19]} {[%emt 00:00:32]} 5. Qa4+ {[%clk 01:42:15]} {[%emt 00:00:09]}
Nbd7 {[%clk 01:41:38]} {[%emt 00:00:11]} 6. Qxc4 {[%clk 01:40:52]} {[%emt
00:01:53]} a6 {[%clk 01:42:00]} {[%emt 00:00:09]} 7. Qc2 {[%clk 01:40:15]}
{[%emt 00:01:07]} c5 {[%clk 01:42:13]} {[%emt 00:00:15]} 8. a4 {[%clk
01:39:33]} {[%emt 00:01:14]} b6 {[%clk 01:41:18]} {[%emt 00:01:25]} 9. Nc3
{[%clk 01:37:59]} {[%emt 00:02:03]} Bb7 {[%clk 01:41:35]} {[%emt 00:00:14]} 10.
O-O {[%clk 01:38:17]} {[%emt 00:00:12]} Be7 {[%clk 01:34:41]} {[%emt 00:07:25]}
11. d3 {[%clk 01:36:39]} {[%emt 00:02:07]} O-O {[%clk 01:34:56]} {[%emt
00:00:16]} 12. Bf4 {[%clk 01:35:49]} {[%emt 00:01:20]} Nd5 {[%clk 01:22:19]}
{[%emt 00:13:08]} 13. Nxd5 {[%clk 01:35:41]} {[%emt 00:00:38]} exd5 {[%clk
01:21:00]} {[%emt 00:01:48]} 14. e4 {[%clk 01:34:17]} {[%emt 00:01:54]} Re8
{[%clk 01:07:33]} {[%emt 00:13:58]} 15. h4 {[%clk 01:32:00]} {[%emt 00:02:46]}
Nf8 {[%clk 01:05:11]} {[%emt 00:02:52]} 16. Ng5 {[%clk 01:28:53]} {[%emt
00:03:36]} h6 {[%clk 01:04:14]} {[%emt 00:01:28]} 17. Nh3 {[%clk 01:28:10]}
{[%emt 00:01:13]} Ne6 {[%clk 01:00:39]} {[%emt 00:04:05]} 18. Be3 {[%clk
01:27:05]} {[%emt 00:01:35]} Bf6 {[%clk 00:55:21]} {[%emt 00:05:47]} 19. Nf4
{[%clk 01:23:12]} {[%emt 00:04:24]} dxe4 {[%clk 00:51:00]} {[%emt 00:04:52]} 20.
Nxe6 {[%clk 01:20:16]} {[%emt 00:03:26]} Rxe6 {[%clk 00:51:24]} {[%emt
00:00:06]} 21. dxe4 {[%clk 01:19:36]} {[%emt 00:01:09]} Qe7 {[%clk 00:34:42]}
{[%emt 00:17:12]} 22. a5 {[%clk 01:10:23]} {[%emt 00:09:44]} Rc8 {[%clk
00:31:07]} {[%emt 00:04:04]} 23. axb6 {[%clk 00:58:13]} {[%emt 00:12:41]} Rxb6
{[%emt 00:00:22]} 24. Rab1 {[%clk 00:56:18]} {[%emt 00:02:12]} Rb4 {[%clk
00:29:43]} {[%emt 00:02:14]} 25. f3 {[%clk 00:52:22]} {[%emt 00:04:26]} c4
{[%clk 00:16:09]} {[%emt 00:14:05]} 26. Rfd1 {[%clk 00:50:56]} {[%emt
00:01:56]} Rb3 {[%clk 00:13:36]} {[%emt 00:03:04]} 27. Bd4 {[%clk 00:47:00]}
{[%emt 00:04:25]} Bxd4+ {[%clk 00:12:29]} {[%emt 00:01:37]} 28. Rxd4 {[%clk
00:47:29]} {[%emt 00:00:02]} Qc5 {[%clk 00:12:08]} {[%emt 00:00:51]} 29. Rbd1
{[%clk 00:44:28]} {[%emt 00:03:30]} Qb6 {[%clk 00:11:30]} {[%emt 00:01:08]} 30.
R1d2 {[%clk 00:37:07]} {[%emt 00:07:52]} c3 {[%clk 00:04:22]} {[%emt 00:07:38]}
31. bxc3 {[%clk 00:35:22]} Rcxc3 {[%clk 00:03:43]} {[%emt 00:03:24]} 32. Qa2
{[%clk 00:33:40]} Rb4 {[%clk 00:04:01]} {[%emt 00:02:23]} 33. Qa1 {[%clk
00:33:06]} Rxd4 {[%clk 00:03:48]} {[%emt 00:01:48]} 0-1

[Event "Masters Tournament (MTO)"]
[Site "Biel, Switzerland"]
[Date "2026.07.14"]
[Round "2.37"]
[White "Yasaswi, Krishna Bommi"]
[Black "Hornung, Hans"]
[Result "1-0"]
[TimeControl "100+30+30sec/move"]
[WhiteTitle "-"]
[BlackTitle "-"]
[WhiteFideId "33368783"]
[BlackFideId "4615140"]
[WhiteElo "2085"]
[BlackElo "1924"]

1. d4 {[%clk 01:40:57]} {[%emt 00:00:03]} Nf6 {[%clk 01:24:33]} {[%emt
00:16:19]} 2. Nf3 {[%clk 01:41:24]} {[%emt 00:00:12]} d6 {[%clk 01:24:32]}
{[%emt 00:00:31]} 3. Bf4 {[%clk 01:41:26]} {[%emt 00:00:28]} g6 {[%clk
01:24:44]} {[%emt 00:00:19]} 4. h3 {[%clk 01:41:40]} {[%emt 00:00:16]} Bg7
{[%clk 01:25:05]} {[%emt 00:00:08]} 5. e3 {[%clk 01:42:02]} {[%emt 00:00:09]}
O-O {[%clk 01:25:13]} {[%emt 00:00:22]} 6. Be2 {[%clk 01:42:25]} {[%emt
00:00:07]} b6 {[%clk 01:25:32]} {[%emt 00:00:10]} 7. O-O {[%clk 01:42:39]}
{[%emt 00:00:16]} Bb7 {[%clk 01:25:45]} {[%emt 00:00:18]} 8. a4 {[%clk
01:42:53]} {[%emt 00:00:16]} a5 {[%clk 01:25:34]} {[%emt 00:00:40]} 9. Nc3
{[%clk 01:42:31]} {[%emt 00:00:52]} Nbd7 {[%clk 01:18:33]} {[%emt 00:07:31]} 10.
Qd3 {[%clk 01:35:51]} {[%emt 00:07:11]} Qc8 {[%clk 01:12:17]} {[%emt 00:06:45]}
11. Rfd1 {[%clk 01:27:53]} {[%emt 00:08:27]} Re8 {[%clk 01:08:24]} {[%emt
00:04:24]} 12. Bh2 {[%clk 01:21:03]} {[%emt 00:07:21]} e5 {[%clk 01:07:37]}
{[%emt 00:01:16]} 13. dxe5 {[%clk 01:20:39]} {[%emt 00:00:55]} dxe5 {[%clk
01:07:40]} {[%emt 00:00:27]} 14. Qd2 {[%clk 01:15:50]} {[%emt 00:05:19]} Bc6
{[%clk 00:59:33]} {[%emt 00:08:36]} 15. Qe1 {[%clk 01:03:10]} {[%emt 00:13:10]}
Qb7 {[%clk 00:59:43]} {[%emt 00:00:20]} 16. Qf1 {[%clk 00:58:43]} {[%emt
00:04:57]} Re7 {[%clk 00:55:02]} {[%emt 00:05:11]} 17. Rd2 {[%clk 00:55:13]}
{[%emt 00:04:00]} h6 {[%clk 00:54:02]} {[%emt 00:01:30]} 18. Rad1 {[%clk
00:52:40]} {[%emt 00:03:03]} Nh7 {[%clk 00:53:51]} {[%emt 00:00:40]} 19. Nd5
{[%clk 00:44:48]} {[%emt 00:08:22]} Ree8 {[%clk 00:53:22]} {[%emt 00:01:00]} 20.
Bb5 {[%clk 00:37:47]} {[%emt 00:07:31]} Nc5 {[%clk 00:50:55]} {[%emt 00:02:57]}
21. Bxc6 {[%clk 00:32:42]} {[%emt 00:05:36]} Qxc6 {[%clk 00:50:13]} {[%emt
00:01:11]} 22. Qc4 {[%clk 00:32:42]} {[%emt 00:00:30]} Qxa4 {[%clk 00:41:45]}
{[%emt 00:08:58]} 23. Qxa4 {[%clk 00:32:54]} {[%emt 00:00:19]} Nxa4 {[%clk
00:42:08]} {[%emt 00:00:07]} 24. Nxc7 {[%clk 00:33:17]} {[%emt 00:00:06]} Nxb2
{[%clk 00:42:19]} {[%emt 00:00:19]} 25. Rb1 {[%clk 00:26:46]} {[%emt 00:07:01]}
Nc4 {[%clk 00:42:29]} {[%emt 00:00:20]} 26. Rdd1 {[%clk 00:26:12]} {[%emt
00:01:05]} Ng5 {[%clk 00:40:37]} {[%emt 00:02:22]} 27. Nxg5 {[%clk 00:17:34]}
{[%emt 00:09:08]} hxg5 {[%clk 00:39:08]} {[%emt 00:01:58]} 28. e4 {[%clk
00:12:13]} {[%emt 00:05:52]} Bf8 {[%clk 00:38:04]} {[%emt 00:01:33]} 29. Kf1
{[%clk 00:09:12]} {[%emt 00:03:32]} Bc5 {[%clk 00:37:01]} {[%emt 00:01:32]} 30.
Ke2 {[%clk 00:07:00]} {[%emt 00:02:43]} Bd4 {[%clk 00:36:45]} {[%emt 00:00:44]}
31. Nxe8 {[%clk 00:05:19]} {[%emt 00:02:12]} Rxe8 {[%clk 00:37:07]} {[%emt
00:00:08]} 32. c3 {[%clk 00:05:02]} {[%emt 00:00:47]} Bc5 {[%clk 00:36:43]}
{[%emt 00:00:55]} 33. Bg1 {[%clk 00:03:55]} {[%emt 00:01:37]} Rc8 {[%clk
00:34:09]} {[%emt 00:03:03]} 34. f3 {[%clk 00:02:43]} {[%emt 00:01:43]} Bxg1
{[%clk 00:34:09]} {[%emt 00:00:29]} 35. Rxg1 {[%clk 00:03:08]} {[%emt
00:00:05]} Kf8 {[%clk 00:34:16]} {[%emt 00:00:23]} 36. Rgd1 {[%clk 00:02:24]}
{[%emt 00:01:14]} Ke7 {[%clk 00:34:10]} {[%emt 00:00:36]} 37. Rd5 {[%clk
00:02:17]} {[%emt 00:00:37]} Rc6 {[%clk 00:34:15]} {[%emt 00:00:25]} 38. Kd3
{[%clk 00:02:03]} {[%emt 00:00:45]} f6 {[%clk 00:33:26]} {[%emt 00:01:18]} 39.
Rb3 {[%clk 00:01:31]} {[%emt 00:01:02]} Nd6 {[%clk 00:27:09]} {[%emt 00:06:47]}
40. Ra3 {[%clk 00:01:30]} {[%emt 00:00:31]} Nc4 {[%clk 00:27:13]} {[%emt
00:00:26]} 41. Ra2 {[%clk 00:00:54]} {[%emt 00:01:06]} Rc8 {[%clk 00:18:04]}
{[%emt 00:09:36]} 42. Rb5 {[%clk 00:25:04]} {[%emt 00:06:24]} Rc6 {[%clk
00:44:07]} {[%emt 00:04:26]} 43. Ra4 {[%clk 00:22:08]} {[%emt 00:03:26]} Nd6
{[%clk 00:44:01]} {[%emt 00:00:36]} 44. Rb1 {[%clk 00:22:24]} {[%emt 00:00:15]}
Kd7 {[%clk 00:43:26]} {[%emt 00:01:04]} 45. g3 {[%clk 00:19:03]} {[%emt
00:03:51]} Nb7 {[%clk 00:39:53]} {[%emt 00:04:02]} 46. Ra2 {[%clk 00:18:46]}
{[%emt 00:00:48]} Nc5+ {[%clk 00:38:52]} {[%emt 00:01:32]} 47. Ke3 {[%clk
00:18:28]} {[%emt 00:00:48]} Ne6 {[%clk 00:37:15]} {[%emt 00:02:06]} 48. Rc1
{[%clk 00:17:51]} {[%emt 00:01:07]} Kc7 {[%clk 00:36:51]} {[%emt 00:00:54]} 49.
h4 {[%clk 00:16:05]} {[%emt 00:02:17]} gxh4 {[%clk 00:35:34]} {[%emt 00:01:46]}
50. gxh4 {[%clk 00:16:30]} {[%emt 00:00:05]} Nf4 {[%clk 00:34:38]} {[%emt
00:01:25]} 51. c4 {[%clk 00:13:57]} {[%emt 00:03:04]} Rd6 {[%clk 00:29:56]}
{[%emt 00:05:11]} 52. Rc3 {[%clk 00:09:35]} {[%emt 00:04:53]} Rd1 {[%clk
00:28:23]} {[%emt 00:02:02]} 53. c5 {[%clk 00:06:11]} {[%emt 00:03:55]} b5
{[%clk 00:26:46]} {[%emt 00:02:07]} 54. Rxa5 {[%clk 00:05:55]} {[%emt
00:00:47]} Re1+ {[%clk 00:26:57]} {[%emt 00:00:19]} 55. Kd2 {[%clk 00:05:39]}
{[%emt 00:00:45]} Re2+ {[%clk 00:27:06]} {[%emt 00:00:20]} 56. Kd1 {[%clk
00:05:39]} {[%emt 00:00:31]} Rb2 {[%clk 00:24:50]} {[%emt 00:02:46]} 57. c6
{[%clk 00:04:23]} {[%emt 00:01:47]} b4 {[%clk 00:23:52]} {[%emt 00:01:27]} 58.
Ra7+ {[%clk 00:03:13]} {[%emt 00:01:40]} Kc8 {[%clk 00:23:15]} {[%emt
00:01:08]} 59. Rc4 {[%clk 00:02:06]} {[%emt 00:01:36]} b3 {[%clk 00:22:47]}
{[%emt 00:00:58]} 60. c7 {[%clk 00:01:35]} {[%emt 00:01:01]} Ra2 {[%clk
00:22:21]} {[%emt 00:00:56]} 61. Rxa2 {[%clk 00:01:22]} {[%emt 00:00:44]} bxa2
{[%clk 00:22:45]} {[%emt 00:00:06]} 62. Ra4 {[%clk 00:01:43]} {[%emt 00:00:08]}
Ng2 {[%clk 00:21:41]} {[%emt 00:01:34]} 63. h5 {[%clk 00:01:25]} {[%emt
00:00:49]} gxh5 {[%clk 00:21:54]} {[%emt 00:00:16]} 64. Rxa2 {[%clk 00:01:47]}
{[%emt 00:00:08]} Nf4 {[%clk 00:21:12]} {[%emt 00:01:12]} 65. Rc2 {[%clk
00:01:53]} {[%emt 00:00:25]} Ne6 {[%clk 00:20:50]} {[%emt 00:00:51]} 66. Rc6
{[%clk 00:01:34]} {[%emt 00:00:49]} Nxc7 {[%clk 00:19:39]} {[%emt 00:01:42]} 67.
Rxf6 {[%clk 00:01:58]} {[%emt 00:00:06]} Kd7 {[%clk 00:19:32]} {[%emt
00:00:36]} 68. Rh6 {[%clk 00:01:38]} {[%emt 00:00:50]} Ne6 {[%clk 00:18:42]}
{[%emt 00:01:20]} 69. Rxh5 {[%clk 00:01:54]} {[%emt 00:00:14]} Kd6 {[%clk
00:18:20]} {[%emt 00:00:52]} 70. Rh6 {[%clk 00:01:29]} {[%emt 00:00:56]} Ke7
{[%clk 00:18:13]} {[%emt 00:00:36]} 71. Kd2 {[%clk 00:01:34]} {[%emt 00:00:24]}
Nd4 {[%clk 00:18:09]} {[%emt 00:00:35]} 72. Ke3 {[%clk 00:01:51]} {[%emt
00:00:14]} Nc2+ {[%clk 00:18:25]} {[%emt 00:00:13]} 73. Kd3 {[%clk 00:01:49]}
{[%emt 00:00:32]} Ne1+ {[%clk 00:18:23]} {[%emt 00:00:32]} 74. Ke2 {[%clk
00:02:06]} {[%emt 00:00:13]} Ng2 {[%clk 00:18:31]} {[%emt 00:00:22]} 75. Rh2
{[%clk 00:01:43]} {[%emt 00:00:52]} Nf4+ {[%clk 00:18:51]} {[%emt 00:00:12]} 76.
Ke3 {[%clk 00:02:08]} {[%emt 00:00:04]} Kf6 {[%clk 00:18:51]} {[%emt 00:00:29]}
77. Kd2 {[%clk 00:01:53]} {[%emt 00:00:46]} Ng6 {[%clk 00:17:57]} {[%emt
00:01:24]} 78. Kd3 {[%clk 00:02:11]} {[%emt 00:00:12]} Kg5 {[%clk 00:18:12]}
{[%emt 00:00:15]} 79. Rg2+ {[%clk 00:02:12]} {[%emt 00:00:29]} Kf6 {[%clk
00:18:15]} {[%emt 00:00:26]} 80. Rxg6+ {[%clk 00:02:23]} {[%emt 00:00:20]} Kxg6
{[%clk 00:18:40]} {[%emt 00:00:06]} 81. Kc4 {[%emt 00:02:55]} 1-0

[Event "Masters Tournament (MTO)"]
[Site "Biel, Switzerland"]
[Date "2026.07.14"]
[Round "2.38"]
[White "Tan, Jimmy"]
[Black "Bucher, Dominic"]
[Result "1-0"]
[TimeControl "100+30+30sec/move"]
[WhiteTitle "-"]
[BlackTitle "-"]
[WhiteFideId "129057499"]
[BlackFideId "1353144"]
[WhiteElo "1953"]
[BlackElo "2078"]

1. d4 {[%clk 01:40:57]} {[%emt 00:00:04]} d5 {[%clk 01:40:54]} {[%emt
00:00:07]} 2. Nc3 {[%clk 01:41:20]} {[%emt 00:00:05]} Nf6 {[%clk 01:41:00]}
{[%emt 00:00:23]} 3. Bf4 {[%clk 01:41:46]} {[%emt 00:00:05]} c6 {[%clk
01:39:43]} {[%emt 00:01:47]} 4. e3 {[%clk 01:42:11]} {[%emt 00:00:05]} Bf5
{[%clk 01:39:50]} {[%emt 00:00:23]} 5. f3 {[%clk 01:42:28]} {[%emt 00:00:13]}
e6 {[%clk 01:39:22]} {[%emt 00:00:58]} 6. g4 {[%clk 01:42:51]} {[%emt
00:00:08]} Bg6 {[%clk 01:39:32]} {[%emt 00:00:19]} 7. h4 {[%clk 01:43:13]}
{[%emt 00:00:08]} h6 {[%clk 01:38:16]} {[%emt 00:01:46]} 8. Bd3 {[%clk
01:43:30]} {[%emt 00:00:13]} Bxd3 {[%clk 01:37:43]} {[%emt 00:01:03]} 9. Qxd3
{[%clk 01:43:54]} {[%emt 00:00:06]} Bd6 {[%clk 01:37:53]} {[%emt 00:00:21]} 10.
Nh3 {[%clk 01:43:44]} {[%emt 00:00:39]} Bxf4 {[%clk 01:33:57]} {[%emt
00:04:28]} 11. Nxf4 {[%clk 01:44:00]} {[%emt 00:00:14]} Nbd7 {[%clk 01:33:39]}
{[%emt 00:00:48]} 12. O-O-O {[%clk 01:42:29]} {[%emt 00:02:01]} e5 {[%clk
01:12:02]} {[%emt 00:22:07]} 13. dxe5 {[%clk 01:37:49]} {[%emt 00:05:11]} Nxe5
{[%clk 01:12:04]} {[%emt 00:00:27]} 14. Qe2 {[%clk 01:37:41]} {[%emt 00:00:38]}
Qd6 {[%clk 00:57:44]} {[%emt 00:14:50]} 15. g5 {[%clk 01:32:15]} {[%emt
00:05:57]} Nfd7 {[%clk 00:57:30]} {[%emt 00:00:44]} 16. gxh6 {[%clk 00:42:28]}
{[%emt 00:50:16]} Qxh6 {[%clk 00:54:48]} {[%emt 00:03:12]} 17. h5 {[%clk
00:37:08]} {[%emt 00:05:50]} O-O-O {[%clk 00:53:16]} {[%emt 00:02:01]} 18. Rhg1
{[%clk 00:35:52]} {[%emt 00:01:46]} Rde8 {[%clk 00:46:30]} {[%emt 00:07:17]} 19.
Qg2 {[%clk 00:30:24]} {[%emt 00:05:58]} Rhg8 {[%clk 00:43:31]} {[%emt
00:03:29]} 20. Qg3 {[%clk 00:25:29]} {[%emt 00:05:24]} Nc4 {[%clk 00:37:50]}
{[%emt 00:06:11]} 21. e4 {[%clk 00:15:44]} {[%emt 00:10:16]} g5 {[%clk
00:27:43]} {[%emt 00:10:37]} 22. Nfe2 {[%clk 00:09:50]} {[%emt 00:06:24]} g4+
{[%clk 00:24:51]} {[%emt 00:03:22]} 23. f4 {[%clk 00:09:11]} {[%emt 00:01:09]}
dxe4 {[%clk 00:24:25]} {[%emt 00:00:55]} 24. Rd4 {[%clk 00:06:07]} {[%emt
00:03:35]} Nd6 {[%clk 00:23:55]} {[%emt 00:01:00]} 25. Ra4 {[%clk 00:05:20]}
{[%emt 00:01:17]} Kb8 {[%clk 00:21:48]} {[%emt 00:02:38]} 26. Qe3 {[%clk
00:04:44]} {[%emt 00:01:05]} Nb6 {[%clk 00:21:45]} {[%emt 00:00:33]} 27. Rb4
{[%clk 00:04:16]} {[%emt 00:00:58]} f5 {[%clk 00:19:10]} {[%emt 00:03:05]} 28.
Qc5 {[%clk 00:03:38]} {[%emt 00:01:08]} Rgf8 {[%clk 00:15:16]} {[%emt
00:04:25]} 29. Rd1 {[%clk 00:03:21]} {[%emt 00:00:46]} Ndc8 {[%clk 00:13:55]}
{[%emt 00:01:51]} 30. a4 {[%clk 00:02:52]} {[%emt 00:00:59]} Qe6 {[%clk
00:10:08]} {[%emt 00:04:17]} 31. Rbd4 {[%clk 00:01:24]} {[%emt 00:01:57]} Qe7
{[%clk 00:09:27]} {[%emt 00:01:12]} 32. Qa5 {[%clk 00:00:40]} {[%emt 00:01:14]}
c5 {[%clk 00:09:10]} {[%emt 00:00:47]} 33. Rd5 {[%clk 00:00:35]} {[%emt
00:00:35]} Nxd5 {[%clk 00:08:14]} {[%emt 00:01:26]} 34. Nxd5 {[%clk 00:01:04]}
{[%emt 00:00:01]} Qd6 {[%clk 00:07:25]} {[%emt 00:01:19]} 35. Nec3 {[%clk
00:01:31]} {[%emt 00:00:03]} a6 {[%clk 00:06:24]} {[%emt 00:01:31]} 36. Ne3
{[%clk 00:00:36]} {[%emt 00:01:24]} Qb6 {[%clk 00:05:44]} {[%emt 00:01:11]} 37.
Qxb6 {[%clk 00:01:05]} {[%emt 00:00:01]} Nxb6 {[%clk 00:06:13]} 38. a5 {[%clk
00:01:25]} {[%emt 00:00:10]} Nc8 {[%clk 00:05:11]} {[%emt 00:01:32]} 39. Rd5
{[%clk 00:01:34]} {[%emt 00:00:21]} Ne7 {[%clk 00:04:17]} {[%emt 00:01:24]} 40.
Rxc5 {[%clk 00:02:02]} {[%emt 00:00:02]} Rf7 {[%clk 00:01:46]} {[%emt
00:03:01]} 41. Ne2 {[%clk 00:27:47]} {[%emt 00:04:43]} Rc8 {[%clk 00:17:35]}
{[%emt 00:14:43]} 42. Re5 {[%clk 00:26:49]} {[%emt 00:01:28]} Nc6 {[%clk
00:16:19]} {[%emt 00:01:46]} 43. Rxf5 {[%clk 00:17:36]} {[%emt 00:09:43]} Rxf5
{[%clk 00:16:38]} {[%emt 00:00:11]} 44. Nxf5 {[%clk 00:18:05]} Nxa5 {[%clk
00:12:58]} {[%emt 00:04:11]} 45. h6 {[%clk 00:16:05]} {[%emt 00:02:29]} Nc4
{[%clk 00:09:34]} {[%emt 00:03:54]} 46. b3 {[%clk 00:13:04]} {[%emt 00:03:31]}
Rf8 {[%clk 00:08:04]} {[%emt 00:02:00]} 47. Neg3 {[%clk 00:07:20]} {[%emt
00:06:13]} Nb6 {[%clk 00:08:22]} {[%emt 00:00:13]} 48. c4 {[%clk 00:06:23]}
{[%emt 00:01:27]} Nd7 {[%clk 00:07:41]} {[%emt 00:01:11]} 49. Kd2 {[%clk
00:04:32]} {[%emt 00:02:21]} Nf6 {[%clk 00:07:10]} {[%emt 00:01:01]} 50. Ke3
{[%clk 00:04:17]} {[%emt 00:00:45]} Re8 {[%clk 00:04:57]} {[%emt 00:02:43]} 51.
Ng7 {[%clk 00:03:44]} {[%emt 00:01:03]} Rh8 {[%clk 00:04:41]} {[%emt 00:00:46]}
52. N7f5 {[%clk 00:04:04]} {[%emt 00:00:10]} Kc7 {[%clk 00:04:28]} {[%emt
00:00:43]} 53. Nxe4 {[%clk 00:03:31]} {[%emt 00:01:03]} Re8 {[%clk 00:04:26]}
{[%emt 00:00:32]} 54. Nfg3 {[%clk 00:03:18]} {[%emt 00:00:43]} Nxe4 {[%clk
00:04:45]} {[%emt 00:00:10]} 55. Nxe4 {[%clk 00:03:44]} {[%emt 00:00:04]} g3
{[%clk 00:04:59]} {[%emt 00:00:17]} 56. h7 {[%clk 00:03:09]} {[%emt 00:01:05]}
Rh8 {[%clk 00:03:48]} {[%emt 00:01:40]} 57. Ng5 {[%clk 00:03:18]} {[%emt
00:00:21]} Kb6 {[%clk 00:03:33]} {[%emt 00:00:46]} 58. b4 {[%clk 00:02:23]}
{[%emt 00:01:25]} Kc6 {[%clk 00:01:49]} {[%emt 00:02:14]} 59. f5 {[%clk
00:02:48]} {[%emt 00:00:05]} Kd7 {[%clk 00:01:49]} {[%emt 00:00:30]} 60. f6
{[%clk 00:02:59]} {[%emt 00:00:18]} b5 {[%clk 00:00:44]} {[%emt 00:01:36]} 61.
cxb5 {[%clk 00:03:11]} {[%emt 00:00:17]} axb5 {[%clk 00:01:13]} {[%emt
00:00:02]} 62. Kf3 {[%clk 00:03:29]} {[%emt 00:00:11]} Kc6 {[%clk 00:00:47]}
{[%emt 00:00:57]} 63. Kxg3 {[%clk 00:03:39]} {[%emt 00:00:20]} Kd5 {[%clk
00:01:11]} {[%emt 00:00:06]} 64. Kf4 {[%clk 00:03:31]} {[%emt 00:00:38]} Kc4
{[%clk 00:00:56]} {[%emt 00:00:45]} 65. f7 {[%clk 00:03:28]} {[%emt 00:00:32]}
Kxb4 {[%clk 00:01:19]} {[%emt 00:00:08]} 66. Ne6 {[%clk 00:03:50]} {[%emt
00:00:07]} Ka4 {[%clk 00:01:30]} {[%emt 00:00:19]} 67. f8=Q {[%emt 00:00:13]}
Rxh7 {[%clk 00:01:54]} {[%emt 00:00:06]} 68. Qa8+ {[%clk 00:04:22]} {[%emt
00:00:16]} Kb3 {[%clk 00:02:11]} {[%emt 00:00:13]} 69. Qd5+ {[%clk 00:04:37]}
{[%emt 00:00:14]} 1-0

[Event "Masters Tournament (MTO)"]
[Site "Biel, Switzerland"]
[Date "2026.07.14"]
[Round "2.39"]
[White "Gerrits, Augustin"]
[Black "Rosen, Noah"]
[Result "1-0"]
[TimeControl "100+30+30sec/move"]
[WhiteTitle "-"]
[BlackTitle "-"]
[WhiteFideId "285358"]
[BlackFideId "1356267"]
[WhiteElo "2072"]
[BlackElo "1921"]

1. e4 {[%clk 01:40:56]} {[%emt 00:00:03]} e5 {[%clk 01:40:50]} {[%emt
00:00:10]} 2. Nf3 {[%clk 01:41:11]} {[%emt 00:00:14]} Nc6 {[%clk 01:41:12]}
{[%emt 00:00:09]} 3. Bc4 {[%clk 01:41:09]} {[%emt 00:00:32]} Bc5 {[%clk
01:41:20]} {[%emt 00:00:21]} 4. d3 {[%clk 01:41:18]} {[%emt 00:00:22]} Nf6
{[%clk 01:41:34]} {[%emt 00:00:16]} 5. Nc3 {[%clk 01:41:12]} {[%emt 00:00:36]}
a6 {[%clk 01:41:18]} {[%emt 00:00:46]} 6. Nd5 {[%clk 01:41:06]} {[%emt
00:00:36]} h6 {[%clk 01:40:35]} {[%emt 00:01:12]} 7. Be3 {[%clk 01:41:20]}
{[%emt 00:00:16]} Bxe3 {[%clk 01:37:22]} {[%emt 00:03:44]} 8. fxe3 {[%clk
01:41:37]} {[%emt 00:00:13]} d6 {[%clk 01:37:40]} {[%emt 00:00:11]} 9. Nxf6+
{[%clk 01:41:36]} {[%emt 00:00:31]} Qxf6 {[%clk 01:35:34]} {[%emt 00:02:38]} 10.
O-O {[%clk 01:41:55]} {[%emt 00:00:12]} Be6 {[%clk 01:34:27]} {[%emt 00:01:37]}
11. Nd4 {[%clk 01:39:53]} {[%emt 00:02:31]} Qg6 {[%clk 01:25:53]} {[%emt
00:09:04]} 12. Bxe6 {[%clk 01:32:59]} {[%emt 00:07:24]} fxe6 {[%clk 01:25:55]}
{[%emt 00:00:28]} 13. Nxc6 {[%clk 01:33:20]} {[%emt 00:00:10]} bxc6 {[%clk
01:26:16]} {[%emt 00:00:08]} 14. Qd2 {[%clk 01:25:42]} {[%emt 00:08:08]} Kd7
{[%clk 01:09:43]} {[%emt 00:17:03]} 15. Rf3 {[%clk 01:25:29]} {[%emt 00:00:43]}
Rhf8 {[%emt 00:01:30]} 16. Raf1 {[%clk 01:25:12]} Rf6 {[%clk 01:07:46]} {[%emt
00:02:14]} 17. Rxf6 {[%clk 01:17:43]} gxf6 {[%clk 01:08:10]} {[%emt 00:08:06]}
18. Rf3 {[%clk 01:16:15]} {[%emt 00:01:58]} Rg8 {[%clk 00:51:24]} {[%emt
00:17:16]} 19. Qf2 {[%clk 01:07:11]} {[%emt 00:09:33]} Ke7 {[%clk 00:45:53]}
{[%emt 00:06:01]} 20. Rg3 {[%clk 01:04:12]} {[%emt 00:03:29]} Qe8 {[%clk
00:45:49]} {[%emt 00:00:34]} 21. Kf1 {[%clk 01:01:23]} {[%emt 00:03:20]} Rg5
{[%clk 00:43:37]} {[%emt 00:02:42]} 22. Qf3 {[%clk 00:46:54]} {[%emt 00:14:58]}
d5 {[%clk 00:34:04]} {[%emt 00:10:03]} 23. b3 {[%clk 00:34:44]} {[%emt
00:12:41]} Qf7 {[%clk 00:21:03]} {[%emt 00:13:30]} 24. Rxg5 {[%clk 00:29:11]}
{[%emt 00:06:04]} hxg5 {[%clk 00:17:47]} {[%emt 00:03:45]} 25. Qg4 {[%clk
00:28:01]} {[%emt 00:01:40]} Qg6 {[%clk 00:17:36]} {[%emt 00:00:41]} 26. h4
{[%clk 00:20:30]} {[%emt 00:08:00]} Qh6 {[%clk 00:12:22]} {[%emt 00:05:44]} 27.
hxg5 {[%clk 00:17:39]} {[%emt 00:03:22]} fxg5 {[%clk 00:12:45]} {[%emt
00:00:07]} 28. Ke2 {[%clk 00:17:02]} {[%emt 00:01:07]} Kd6 {[%clk 00:12:16]}
{[%emt 00:00:59]} 29. c4 {[%clk 00:12:57]} {[%emt 00:04:36]} d4 {[%clk
00:09:13]} {[%emt 00:03:33]} 30. exd4 {[%clk 00:07:49]} {[%emt 00:05:38]} exd4
{[%clk 00:09:37]} {[%emt 00:00:05]} 31. Qg3+ {[%clk 00:07:48]} {[%emt
00:00:31]} e5 {[%clk 00:09:59]} {[%emt 00:00:08]} 32. c5+ {[%clk 00:08:02]}
{[%emt 00:00:17]} Kxc5 {[%clk 00:01:54]} {[%emt 00:08:35]} 33. Qxe5+ {[%clk
00:08:24]} {[%emt 00:00:08]} Kb4 {[%clk 00:02:15]} {[%emt 00:00:09]} 34. Qxd4+
{[%clk 00:07:53]} {[%emt 00:01:00]} Ka3 {[%clk 00:02:39]} {[%emt 00:00:07]} 35.
Kd2 {[%clk 00:04:26]} {[%emt 00:03:57]} Qh1 {[%clk 00:02:11]} {[%emt 00:00:58]}
36. Qc5+ {[%clk 00:04:40]} {[%emt 00:00:16]} 1-0